bitfinex/quotes_SOLUSD_20220212
["timestamp","ask_amount","ask_price","bid_price","bid_amount"]
[1644638260058,5.159,96.939,96.861,2.38366791]
[1644638260258,22.5115,96.946,96.861,2.38366791]
[1644638260662,22.5115,96.946,96.86,15.4841]
[1644638260861,5.159,96.945,96.86,15.4841]
[1644638261058,5.159,96.945,96.861,2.38366791]
[1644638264467,5.159,96.945,96.87,15.4832]
[1644638266463,5.159,96.945,96.86,15.4849]
[1644638266662,15.4853,96.94,96.86,15.4849]
[1644638266863,5.159,96.939,96.86,15.4849]
[1644638268768,5.159,96.939,96.85,2.38366791]
[1644638268963,15.4869,96.93,96.842,45.62901249]
[1644638269163,24.2429,96.929,96.842,45.62901249]
[1644638269364,29.4029,96.929,96.842,45.62901249]
[1644638270267,29.4029,96.929,96.843,2.38366791]
[1644638270466,24.2429,96.929,96.843,2.38366791]
[1644638271269,5.16,96.947,96.85,15.4865]
[1644638271466,23.2549,96.946,96.85,15.4865]
[1644638271668,5.16,96.945,96.851,2.38366791]
[1644638272775,5.16,96.945,96.87,15.4835]
[1644638273374,5.16,96.945,96.871,2.38366791]
[1644638273573,5.16,96.945,96.88,14.88]
[1644638273777,5.159,96.982,96.88,14.88]
[1644638273975,15.4783,96.99,96.88,14.88]
[1644638273976,51.6585,96.989,96.89,15.4797]
[1644638274378,36.66711014,96.988,96.891,43.40446138]
[1644638274673,5.157,96.987,96.892,2.38366791]
[1644638274874,15.4786,96.98,96.892,2.38366791]
[1644638275076,5.158,96.979,96.892,2.38366791]
[1644638276578,5.158,96.979,96.9,15.4797]
[1644638276978,5.158,96.979,96.901,2.38366791]
[1644638278682,5.158,96.979,96.91,15.4778]
[1644638278885,5.157,96.988,96.91,15.4778]
[1644638279080,5.157,96.988,96.911,2.38366791]
[1644638280094,5.157,96.988,96.92,15.4758]
[1644638280295,5.157,96.988,96.911,2.38366791]
[1644638280496,5.157,96.988,96.9,14.88]
[1644638280694,5.157,96.988,96.921,2.38366791]
[1644638280895,5.157,96.988,96.921,44.86051717]
[1644638283596,5.157,96.988,96.922,2.38366791]
[1644638283798,15.4787,96.98,96.921,42.47684926]
[1644638284001,5.157,96.979,96.9,2.38366791]
[1644638284398,5.157,96.988,96.9,2.38366791]
[1644638285098,5.157,96.988,96.901,44.61322521]
[1644638285299,15.4811,96.97,96.901,44.61322521]
[1644638285502,5.158,96.969,96.902,2.38366791]
[1644638285700,5.158,96.987,96.902,2.38366791]
[1644638285902,5.157,96.988,96.902,2.38366791]
[1644638286301,5.157,97.029,96.902,2.38366791]
[1644638286508,5.157,97.006,96.91,15.4781]
[1644638286801,5.157,97.006,96.92,14.88]
[1644638287206,5.156,97.007,96.921,2.38366791]
[1644638287409,5.156,97.005,96.921,2.38366791]
[1644638287606,15.4758,97.0,96.921,2.38366791]
[1644638288006,23.592,97.004,96.921,2.38366791]
[1644638289013,28.57020989,97.003,96.931,35.12625827]
[1644638289210,33.72620989,97.003,96.931,35.12625827]
[1644638289510,33.72620989,97.003,96.932,2.38366791]
[1644638291214,5.156,97.003,96.932,2.38366791]
[1644638292716,5.156,97.003,96.94,15.4734]
[1644638293117,5.156,97.003,96.941,2.38366791]
[1644638293315,23.592,97.004,96.941,2.38366791]
[1644638296920,5.156,97.019,96.95,15.4719]
[1644638297121,5.155,97.038,96.96,14.88]
[1644638297323,69.6235,97.098,96.96,14.88]
[1644638297324,5.155,97.069,96.96,14.88]
[1644638297520,5.154,97.079,96.961,2.38366791]
[1644638297720,14.88,97.09,96.961,2.38366791]
[1644638297721,5.154,97.068,96.961,42.76260996]
[1644638297924,38.05247169,97.057,96.961,42.76260996]
[1644638298122,38.05247169,97.057,96.962,2.38366791]
[1644638298323,5.154,97.056,96.962,2.38366791]
[1644638298725,15.4676,97.05,96.98,15.4672]
[1644638299123,15.4676,97.05,96.981,2.38366791]
[1644638301424,5.152,97.049,96.981,2.38366791]
[1644638302724,5.152,97.049,96.99,15.4659]
[1644638302924,5.152,97.054,96.99,15.4659]
[1644638303124,5.152,97.054,96.991,2.38366791]
[1644638303527,23.723,97.055,96.991,2.38366791]
[1644638303927,23.723,97.055,96.992,41.21125857]
[1644638304327,23.723,97.055,97.0,15.4642]
[1644638304527,5.152,97.066,97.0,15.4642]
[1644638304728,28.8994,97.097,97.01,14.88]
[1644638305125,28.8994,97.097,97.011,2.38366791]
[1644638305325,35.38568452,97.096,97.011,2.38366791]
[1644638305733,35.38568452,97.096,97.03,15.4579]
[1644638305927,35.38568452,97.096,97.031,39.45161562]
[1644638306128,35.38568452,97.096,97.031,41.83528353]
[1644638306426,35.38568452,97.096,97.032,2.38366791]
[1644638306628,23.7474,97.097,97.032,2.38366791]
[1644638306825,5.151,97.096,97.032,2.38366791]
[1644638307933,5.151,97.096,97.04,15.458]
[1644638308330,5.151,97.096,97.041,2.38366791]
[1644638309733,23.7474,97.097,97.041,2.38366791]
[1644638310935,5.15,97.096,97.041,2.38366791]
[1644638316544,5.15,97.096,97.02,30.3401]
[1644638316744,5.15,97.096,97.02,15.4601]
[1644638316953,5.15,97.096,96.99,14.88]
[1644638317447,5.15,97.096,96.991,39.10634828]
[1644638318746,15.4614,97.09,97.0,15.4643]
[1644638318949,5.152,97.089,97.0,15.4643]
[1644638319547,5.152,97.096,97.0,15.4643]
[1644638320149,15.4629,97.08,97.0,15.4643]
[1644638320348,34.53052226,97.079,97.0,15.4643]
[1644638320548,34.53052226,97.079,96.991,39.10634828]
[1644638321861,15.4661,97.06,96.991,39.10634828]
[1644638322061,24.6798,97.059,96.991,39.10634828]
[1644638324267,24.6798,97.059,97.0,15.4643]
[1644638326476,24.6798,97.059,96.991,39.10634828]
[1644638326671,5.152,97.058,96.991,39.10634828]
[1644638327574,15.4674,97.05,96.991,39.10634828]
[1644638330775,34.13757543,97.049,96.991,39.10634828]
[1644638331175,15.4674,97.05,96.991,39.10634828]
[1644638331376,5.152,97.048,96.991,39.10634828]
[1644638331579,5.152,97.057,96.991,39.10634828]
[1644638331777,5.152,97.058,96.991,39.10634828]
[1644638332277,37.95464176,97.057,96.991,39.10634828]
[1644638332477,5.152,97.056,96.991,39.10634828]
[1644638334279,5.152,97.056,96.99,15.4662]
[1644638334687,15.4675,97.05,96.98,15.4677]
[1644638334886,5.152,97.049,96.98,15.4677]
[1644638335287,5.152,97.049,96.981,42.52532821]
[1644638336982,15.4675,97.05,96.981,42.52532821]
[1644638337183,5.152,97.049,96.981,42.52532821]
[1644638342894,5.152,97.049,96.98,15.4677]
[1644638343092,15.4694,97.04,96.95,14.88]
[1644638343293,15.4694,97.04,96.94,14.88]
[1644638343492,27.8266,97.039,96.93,51.5703]
[1644638343691,23.1548,97.038,96.93,51.5703]
[1644638343891,5.155,97.037,96.931,36.52074007]
[1644638344790,15.4734,97.02,96.95,15.4714]
[1644638344992,30.01185593,97.019,96.931,36.52074007]
[1644638345401,32.39552384,97.019,96.931,36.52074007]
[1644638345593,2.38366791,97.018,96.931,36.52074007]
[1644638345793,5.155,97.017,96.931,36.52074007]
[1644638345994,15.4771,97.0,96.931,36.52074007]
[1644638346195,22.6648,96.999,96.931,36.52074007]
[1644638347304,15.4785,96.99,96.932,2.38366791]
[1644638347703,5.156,96.998,96.932,2.38366791]
[1644638348103,22.6648,96.999,96.932,2.38366791]
[1644638348504,22.6648,96.999,96.94,15.4742]
[1644638348903,22.6648,96.999,96.941,2.38366791]
[1644638349804,22.6648,96.999,96.941,1.88366791]
[1644638350006,22.6648,96.999,96.94,15.4742]
[1644638350206,5.156,96.998,96.94,15.4742]
[1644638351010,5.156,96.998,96.931,36.52074007]
[1644638352816,15.4772,96.99,96.931,36.52074007]
[1644638353019,35.70429636,96.989,96.931,36.52074007]
[1644638354822,15.4786,96.98,96.931,36.52074007]
[1644638355021,5.157,96.979,96.931,36.52074007]
[1644638355221,5.157,96.979,96.91,15.479]
[1644638355422,24.6713,96.978,96.91,15.479]
[1644638355625,5.157,96.977,96.911,2.38366791]
[1644638356223,5.157,96.977,96.912,34.44712691]
[1644638356623,5.157,96.977,96.913,2.38366791]
[1644638358725,5.157,96.977,96.92,15.4774]
[1644638358925,15.4771,96.99,96.92,15.4774]
[1644638358926,5.157,96.999,96.92,15.4774]
[1644638359124,5.157,97.009,96.921,26.63096791]
[1644638359327,29.00205862,97.028,96.921,26.63096791]
[1644638359525,5.155,97.027,96.922,2.38366791]
[1644638360025,5.155,97.027,96.93,14.88]
[1644638360428,5.155,97.027,96.931,2.38366791]
[1644638360829,15.4724,97.02,96.94,15.4724]
[1644638361028,5.155,97.019,96.94,15.4724]
[1644638361229,5.155,97.019,96.941,2.38366791]
[1644638361428,5.155,97.019,96.942,39.10926896]
[1644638361826,5.155,97.019,96.943,2.38366791]
[1644638362729,5.155,97.019,96.95,15.4725]
[1644638363031,5.155,97.019,96.951,2.38366791]
[1644638364131,15.4724,97.02,96.951,2.38366791]
[1644638365436,5.155,97.019,96.951,2.38366791]
[1644638365836,24.1902,97.018,96.951,2.38366791]
[1644638366038,5.155,97.017,96.951,2.38366791]
[1644638372143,24.1902,97.018,96.951,2.38366791]
[1644638373646,5.155,97.017,96.951,2.38366791]
[1644638376947,24.1902,97.018,96.951,2.38366791]
[1644638380849,5.155,97.017,96.951,2.38366791]
[1644638385952,5.155,97.017,96.95,15.4725]
[1644638386154,5.155,97.017,96.93,1.45307844]
[1644638386155,15.4742,97.01,96.93,1.45307844]
[1644638386355,5.156,97.009,96.93,1.45307844]
[1644638386553,1.44580765,97.004,96.908,1.45307844]
[1644638387053,1.44580765,97.002,96.906,1.45307844]
[1644638387253,32.03583287,97.001,96.907,35.96509373]
[1644638387453,15.4786,96.99,96.91,15.4781]
[1644638387652,5.157,96.989,96.91,15.4781]
[1644638387853,22.9563,96.988,96.91,15.4781]
[1644638388176,5.157,96.987,96.91,15.4781]
[1644638388853,15.4789,96.98,96.91,15.4781]
[1644638389053,5.157,96.979,96.91,15.4781]
[1644638391976,15.4803,96.97,96.91,15.4781]
[1644638392157,15.4803,96.97,96.908,24.5325]
[1644638392363,29.8447,96.969,96.908,24.5325]
[1644638392861,31.01546482,96.968,96.905,44.17280389]
[1644638393065,5.158,96.967,96.905,44.17280389]
[1644638394365,5.158,96.967,96.91,15.4793]
[1644638394565,5.158,96.968,96.91,15.4793]
[1644638395882,5.157,96.989,96.91,15.4793]
[1644638396083,1.44580765,97.001,96.911,2.38366791]
[1644638396284,22.94,97.009,96.93,15.473]
[1644638396683,22.94,97.009,96.931,2.38366791]
[1644638396885,5.156,97.008,96.931,2.38366791]
[1644638397086,22.94,97.009,96.931,2.38366791]
[1644638397284,22.94,97.009,96.94,15.4731]
[1644638397585,22.94,97.009,96.941,47.39286675]
[1644638397886,5.155,97.008,96.941,47.39286675]
[1644638398084,22.94,97.009,96.941,47.39286675]
[1644638398682,22.94,97.009,96.942,2.38366791]
[1644638398884,22.94,97.009,96.95,15.4732]
[1644638400084,1.44580765,97.033,96.95,17.85686791]
[1644638400284,1.44580765,97.049,96.96,14.88]
[1644638400485,0.03570839,97.05,96.98,15.4665]
[1644638400684,0.03570839,97.05,96.981,38.96567708]
[1644638400985,0.03570839,97.05,96.981,41.34934499]
[1644638401185,0.03570839,97.05,96.96,66.4349]
[1644638401186,5.152,97.047,96.96,66.4349]
[1644638401386,21.1562171,97.047,96.96,66.4349]
[1644638401585,21.1562171,97.047,96.98,15.4685]
[1644638401787,39.0217171,97.046,96.98,15.4685]
[1644638402087,21.1562171,97.045,96.961,2.38366791]
[1644638402289,1.44580765,97.041,96.962,43.34500416]
[1644638402488,1.44580765,97.039,96.95,15.4736]
[1644638402688,1.44580765,97.038,96.95,15.4736]
[1644638402884,1.44580765,97.037,96.95,15.4736]
[1644638403086,5.154,97.036,96.95,15.4736]
[1644638403287,21.1582171,97.036,96.95,15.4736]
[1644638403494,21.1582171,97.036,96.951,42.69679404]
[1644638403691,16.0042171,97.035,96.951,42.69679404]
[1644638403891,15.4739,97.02,96.951,42.69679404]
[1644638404090,28.5218,97.019,96.951,42.69679404]
[1644638404693,28.5218,97.019,96.95,15.4736]
[1644638405692,28.5218,97.019,96.951,35.84540079]
[1644638406996,15.4739,97.01,96.951,35.84540079]
[1644638407198,5.155,97.009,96.951,35.84540079]
[1644638407600,5.155,97.009,96.95,15.4736]
[1644638408601,5.155,97.009,96.951,46.16507892]
[1644638410101,15.4739,97.01,96.951,46.16507892]
[1644638411805,5.155,97.009,96.951,46.16507892]
[1644638413406,5.155,97.009,96.95,15.4736]
[1644638414707,15.4757,97.0,96.94,15.4753]
[1644638415206,5.156,96.999,96.94,15.4753]
[1644638415408,24.8166,96.998,96.927,24.2144]
[1644638415607,24.8166,96.998,96.912,1.45307844]
[1644638415808,5.156,96.997,96.927,42.70040757]
[1644638416007,15.4772,96.99,96.927,42.70040757]
[1644638416208,39.50884375,96.989,96.927,42.70040757]
[1644638416408,39.50884375,96.989,96.92,15.4783]
[1644638416607,39.50884375,96.989,96.902,2.38366791]
[1644638417411,15.4798,96.98,96.903,46.29278321]
[1644638417609,5.157,96.979,96.903,46.29278321]
[1644638418008,22.9006,96.978,96.904,2.38366791]
[1644638418209,28.0576,96.978,96.904,2.38366791]
[1644638418409,28.0576,96.978,96.91,15.4799]
[1644638418611,5.157,96.998,96.91,15.4799]
[1644638418811,28.0576,96.998,96.91,15.4799]
[1644638419010,28.0576,96.998,96.911,2.38366791]
[1644638419410,28.0576,96.998,96.912,24.974]
[1644638419811,28.0576,96.998,96.913,2.38366791]
[1644638420410,28.0576,96.998,96.912,24.974]
[1644638420911,28.0576,96.998,96.93,15.4755]
[1644638421314,28.0576,96.998,96.931,2.38366791]
[1644638421512,22.9006,96.998,96.931,2.38366791]
[1644638421933,5.156,97.019,96.94,15.4755]
[1644638422132,38.25616543,97.024,96.94,15.4755]
[1644638422133,24.5063,97.018,96.941,43.81834972]
[1644638422432,29.6613,97.018,96.941,46.20201763]
[1644638422634,15.96325439,97.017,96.941,46.20201763]
[1644638422832,15.4739,97.01,96.94,15.4755]
[1644638423032,1.44580765,97.007,96.92,15.4775]
[1644638423234,1.44580765,97.002,96.892,1.45307844]
[1644638423542,1.44580765,97.0,96.89,1.45307844]
[1644638423733,1.44580765,96.999,96.889,1.45307844]
[1644638423933,1.44580765,96.996,96.89,39.13463706]
[1644638424134,41.98156204,96.998,96.893,1.45307844]
[1644638424334,5.157,96.995,96.894,24.9954]
[1644638424634,1.38543226,96.994,96.894,27.37906791]
[1644638424835,15.4793,96.99,96.91,15.4802]
[1644638425036,22.7536,96.989,96.91,15.4802]
[1644638425243,27.9106,96.989,96.91,15.4802]
[1644638425643,27.9106,96.989,96.911,2.38366791]
[1644638426742,15.4789,96.98,96.92,15.4785]
[1644638426937,15.4789,96.98,96.921,42.60260752]
[1644638427740,27.9106,96.989,96.922,2.38366791]
[1644638428139,5.157,96.989,96.922,2.38366791]
[1644638428441,5.157,96.989,96.93,30.3571]
[1644638428642,29.0627,97.018,96.93,30.3571]
[1644638428839,23.9057,97.018,96.931,25.49926791]
[1644638429040,5.156,97.017,96.931,25.49926791]
[1644638429241,5.156,97.017,96.932,2.38366791]
[1644638429440,5.156,97.017,96.95,15.473]
[1644638429843,5.156,97.017,96.951,2.38366791]
[1644638430243,5.156,97.017,96.952,35.47185741]
[1644638430641,5.156,97.017,96.953,2.38366791]
[1644638430857,15.4744,97.01,96.933,2.38366791]
[1644638431045,5.156,97.009,96.933,2.38366791]
[1644638431244,15.94509042,97.009,96.933,2.38366791]
[1644638431446,5.156,97.008,96.933,2.38366791]
[1644638431848,15.94509042,97.014,96.933,2.38366791]
[1644638432047,5.156,97.013,96.933,2.38366791]
[1644638432247,5.155,97.015,96.933,2.38366791]
[1644638432450,15.4742,97.01,96.94,15.4752]
[1644638432648,5.155,97.009,96.94,15.4752]
[1644638432851,5.155,97.009,96.941,2.38366791]
[1644638434849,5.155,97.009,96.95,15.4738]
[1644638435048,23.9057,97.018,96.95,15.4738]
[1644638435248,23.9057,97.018,96.951,2.38366791]
[1644638437553,5.155,97.017,96.951,2.38366791]
[1644638438163,5.155,97.017,96.96,15.4724]
[1644638438553,5.155,97.017,96.961,2.38366791]
[1644638440556,5.155,97.017,96.95,17.85766791]
[1644638440758,5.155,97.017,96.95,15.474]
[1644638441159,5.155,97.017,96.951,2.38366791]
[1644638442861,5.155,97.017,96.96,15.4723]
[1644638443266,5.155,97.017,96.961,2.38366791]
[1644638444365,5.155,97.017,96.97,15.4707]
[1644638444565,23.9057,97.018,96.97,15.4707]
[1644638444767,5.155,97.029,96.971,2.38366791]
[1644638444967,5.154,97.036,96.971,2.38366791]
[1644638445165,1.44580765,97.051,96.971,2.38366791]
[1644638445366,0.03524845,97.04,96.972,45.6781738]
[1644638445769,15.96971684,97.05,96.973,2.38366791]
[1644638445968,5.154,97.049,96.973,2.38366791]
[1644638446768,5.154,97.049,96.98,15.4674]
[1644638447170,5.154,97.049,96.981,2.38366791]
[1644638447373,0.03524845,97.06,96.99,51.5437]
[1644638447572,0.03524845,97.07,96.99,51.5437]
[1644638447769,0.03524845,97.07,96.991,2.38366791]
[1644638447970,0.03524845,97.07,97.0,15.4631]
[1644638448187,22.905,97.076,97.0,30.3431]
[1644638448389,22.905,97.076,97.001,2.38366791]
[1644638448788,0.03524845,97.08,97.001,2.38366791]
[1644638448986,5.152,97.089,97.02,15.4607]
[1644638449187,0.03524845,97.08,97.021,5.151]
[1644638449388,5.151,97.088,97.021,71.37391241]
[1644638449586,5.151,97.089,97.022,2.38366791]
[1644638449785,0.03524845,97.09,97.022,2.38366791]
[1644638449986,5.151,97.089,97.022,2.38366791]
[1644638450188,5.151,97.094,97.022,2.38366791]
[1644638450387,1.44580765,97.096,97.022,2.38366791]
[1644638450388,5.151,97.095,97.022,2.38366791]
[1644638450587,1.44580765,97.091,97.021,40.3689445]
[1644638450797,28.8838,97.09,97.021,40.3689445]
[1644638451593,15.95838997,97.089,97.021,40.3689445]
[1644638451788,5.151,97.088,97.021,40.3689445]
[1644638452596,5.151,97.089,97.021,40.3689445]
[1644638452790,5.151,97.089,97.022,2.38366791]
[1644638453792,5.151,97.089,97.03,15.4612]
[1644638455194,23.7328,97.09,97.03,15.4612]
[1644638455392,5.151,97.089,97.03,15.4612]
[1644638456195,5.151,97.089,97.021,40.3689445]
[1644638456995,28.36420194,97.088,97.021,40.3689445]
[1644638457194,5.151,97.087,97.021,40.3689445]
[1644638457395,15.4631,97.08,97.021,40.3689445]
[1644638457595,5.151,97.079,97.021,40.3689445]
[1644638457796,5.151,97.086,97.021,40.3689445]
[1644638457996,6.59680765,97.087,97.021,40.3689445]
[1644638458399,1.44580765,97.086,97.021,40.3689445]
[1644638458597,6.59680765,97.085,97.021,40.3689445]
[1644638458799,15.4647,97.07,97.021,40.3689445]
[1644638458996,5.152,97.069,97.021,40.3689445]
[1644638460999,5.152,97.084,97.022,2.38366791]
[1644638461199,5.152,97.079,97.022,2.38366791]
[1644638461402,5.151,97.089,97.022,2.38366791]
[1644638461800,5.151,97.089,97.03,15.4605]
[1644638464203,5.151,97.089,97.021,40.3689445]
[1644638464704,1.44580765,97.084,97.021,40.3689445]
[1644638464906,5.151,97.083,97.021,40.3689445]
[1644638465105,1.44580765,97.085,97.021,40.3689445]
[1644638465307,1.44580765,97.084,97.021,40.3689445]
[1644638465706,6.59680765,97.083,97.021,40.3689445]
[1644638465907,15.4631,97.08,97.021,40.3689445]
[1644638466108,5.151,97.079,97.021,40.3689445]
[1644638466412,5.151,97.079,97.022,2.38366791]
[1644638466612,27.6966,97.079,97.022,2.38366791]
[1644638467208,27.1966,97.079,97.022,2.38366791]
[1644638467409,27.1966,97.079,97.021,40.3689445]
[1644638470512,27.1966,97.079,97.03,15.4609]
[1644638470711,22.5456,97.079,97.03,15.4609]
[1644638474013,5.151,97.078,97.03,15.4609]
[1644638475215,22.5456,97.079,97.03,15.4609]
[1644638475814,1.44580765,97.085,97.03,15.4609]
[1644638476015,5.151,97.099,97.031,2.38366791]
[1644638476215,15.4575,97.12,97.031,2.38366791]
[1644638476216,1.44580765,97.108,97.05,15.4564]
[1644638476414,1.44580765,97.108,97.05,30.3364]
[1644638476616,1.44580765,97.116,97.051,2.38366791]
[1644638476815,0.03524845,97.12,97.051,67.38793013]
[1644638477215,0.03524845,97.12,97.052,2.38366791]
[1644638477815,0.03524845,97.12,97.07,15.453]
[1644638478014,1.44580765,97.133,97.07,15.453]
[1644638478218,1.44580765,97.136,97.07,15.453]
[1644638478415,1.44580765,97.137,97.07,15.453]
[1644638478615,1.44580765,97.14,97.07,15.453]
[1644638478815,0.03524845,97.14,97.07,15.453]
[1644638479019,1.44580765,97.141,97.07,15.453]
[1644638479216,0.03524845,97.14,97.07,15.453]
[1644638479415,1.44580765,97.142,97.07,15.453]
[1644638479619,0.03524845,97.14,97.07,15.453]
[1644638479820,1.44580765,97.146,97.07,15.453]
[1644638480017,0.03524845,97.14,97.07,15.453]
[1644638480218,27.7264,97.149,97.07,15.453]
[1644638480416,0.03524845,97.14,97.07,15.453]
[1644638480617,27.7264,97.149,97.07,15.453]
[1644638480817,0.03524845,97.14,97.07,15.453]
[1644638481019,27.7264,97.149,97.07,15.453]
[1644638481218,0.03524845,97.14,97.07,15.453]
[1644638481418,27.7264,97.149,97.07,15.453]
[1644638481619,0.03524845,97.14,97.07,15.453]
[1644638481817,27.7264,97.149,97.07,15.453]
[1644638482028,0.03524845,97.14,97.07,15.453]
[1644638482221,27.7264,97.149,97.07,15.453]
[1644638482420,0.03524845,97.14,97.07,15.453]
[1644638482620,27.7264,97.149,97.07,15.453]
[1644638482821,0.03524845,97.14,97.051,65.00426222]
[1644638483020,5.149,97.139,97.06,15.4546]
[1644638483220,5.149,97.139,97.051,41.89126222]
[1644638483420,14.88,97.13,97.051,41.89126222]
[1644638483621,5.149,97.129,97.003,22.7387]
[1644638483820,1.44580765,97.126,97.003,22.7387]
[1644638484020,6.59680765,97.125,97.003,22.7387]
[1644638484222,15.4591,97.11,97.03,15.4592]
[1644638484420,29.9292,97.109,97.03,15.4592]
[1644638484623,29.9292,97.109,97.031,47.00276138]
[1644638485823,67.86517268,97.109,97.04,15.4573]
[1644638486427,15.4598,97.1,97.031,47.00276138]
[1644638486624,5.151,97.099,96.99,51.5363]
[1644638486824,0.03524845,97.09,97.0,15.464]
[1644638487025,7.53566791,97.098,96.97,14.88]
[1644638487226,5.152,97.089,96.956,1.45307844]
[1644638487432,1.44580765,97.078,96.95,14.88]
[1644638487626,1.70562501,97.069,96.943,37.20357097]
[1644638487826,47.7214,97.068,96.943,37.20357097]
[1644638488126,0.03524845,97.06,96.943,37.20357097]
[1644638488325,5.154,97.059,96.943,37.20357097]
[1644638488527,15.4709,97.04,96.96,15.4701]
[1644638488728,5.154,97.039,96.96,15.4701]
[1644638489328,30.0092,97.039,96.96,15.4701]
[1644638490255,15.4707,97.03,96.96,15.4701]
[1644638490558,15.4707,97.03,96.96,17.85376791]
[1644638490559,5.154,97.029,96.96,17.85376791]
[1644638491858,5.154,97.029,96.96,15.4701]
[1644638492259,5.154,97.029,96.943,37.20357097]
[1644638492260,15.4723,97.02,96.943,37.20357097]
[1644638492661,23.9192,97.028,96.961,2.38366791]
[1644638492861,24.8552,97.039,96.961,2.38366791]
[1644638493060,5.154,97.037,96.961,2.38366791]
[1644638493264,24.8552,97.039,96.943,37.20357097]
[1644638493265,5.154,97.038,96.943,37.20357097]
[1644638493466,28.02391781,97.029,96.943,37.20357097]
[1644638493866,5.155,97.028,96.943,37.20357097]
[1644638494267,22.6828,97.027,96.943,37.20357097]
[1644638494462,5.155,97.026,96.943,37.20357097]
[1644638495265,5.155,97.026,96.944,2.38366791]
[1644638495867,15.4745,97.01,96.95,15.4736]
[1644638496071,5.155,97.009,96.95,15.4736]
[1644638496267,5.155,97.009,96.95,17.85726791]
[1644638496867,5.155,97.009,96.95,15.4736]
[1644638500273,5.155,97.009,96.95,17.85726791]
[1644638501271,5.155,97.009,96.95,15.4736]
[1644638502573,15.4758,97.0,96.943,37.20357097]
[1644638502974,11.61767988,96.999,96.943,37.20357097]
[1644638503174,5.156,96.998,96.943,37.20357097]
[1644638503774,15.4775,96.99,96.93,15.4769]
[1644638503976,5.156,96.989,96.906,26.97696791]
[1644638504175,27.8357,96.989,96.906,26.97696791]
[1644638504375,22.6797,96.989,96.906,26.97696791]
[1644638504575,5.157,96.988,96.906,26.97696791]
[1644638504776,5.157,96.988,96.907,48.81244125]
[1644638505578,15.4796,96.98,96.92,15.4787]
[1644638505778,5.157,96.979,96.92,15.4787]
[1644638508382,15.4804,96.97,96.89,2.38366791]
[1644638508581,22.5848,96.969,96.86,14.88]
[1644638508781,27.7438,96.969,96.868,2.38366791]
[1644638509379,28.02391781,96.968,96.869,46.53727241]
[1644638509582,5.158,96.967,96.869,46.53727241]
[1644638509779,5.158,96.967,96.87,2.38366791]
[1644638510780,15.4854,96.94,96.87,17.87036791]
[1644638510979,5.159,96.939,96.87,17.87036791]
[1644638511179,5.159,96.939,96.871,2.38366791]
[1644638511679,11.61767988,96.938,96.871,2.38366791]
[1644638511879,5.159,96.937,96.871,2.38366791]
[1644638515885,5.159,96.939,96.871,2.38366791]
[1644638516083,28.1604,96.939,96.871,2.38366791]
[1644638516585,15.4873,96.93,96.871,2.38366791]
[1644638516884,5.159,96.929,96.871,2.38366791]
[1644638518085,15.4888,96.92,96.853,2.38366791]
[1644638518486,5.16,96.919,96.853,2.38366791]
[1644638518686,29.8757,96.919,96.853,2.38366791]
[1644638518886,29.8757,96.919,96.854,40.05409852]
[1644638519285,29.8757,96.919,96.855,2.38366791]
[1644638521494,29.8757,96.919,96.86,15.4884]
[1644638522395,29.8757,96.919,96.861,2.38366791]
[1644638523418,15.4904,96.91,96.861,2.38366791]
[1644638523614,5.16,96.909,96.861,2.38366791]
[1644638523817,5.16,96.909,96.843,2.38366791]
[1644638524016,5.16,96.918,96.843,2.38366791]
[1644638524215,5.16,96.908,96.814,2.38366791]
[1644638524418,30.3725,96.9,96.815,45.74919395]
[1644638524816,5.162,96.899,96.815,45.74919395]
[1644638525720,15.4945,96.89,96.815,45.74919395]